fUSD/lending_fUSD_20241009
["ID","MTS","AMOUNT","RATE_DAILY","PERIOD"]
[340073454,1728467440174,-1000.0,0.00032302,2]
[340073455,1728467440184,-1000.0,0.00032302,2]
[340073456,1728467440193,-1000.0,0.00032302,2]
[340073457,1728467440203,-1000.0,0.00032302,2]
[340073458,1728467440213,-630.0,0.00032302,2]
[340073459,1728467440223,-164.51123467,0.00032302,30]
[340073460,1728467440232,-157.86013483,0.00032302,15]
[340073461,1728467440242,-259.06309663,0.00032302,120]
[340073462,1728467440251,-173.12817071,0.00032302,7]
[340073463,1728467440263,-243.43338588,0.00032302,30]
[340073464,1728467440272,-602.64967482,0.00032302,120]
[340073465,1728467440282,-227.8645056,0.00032302,120]
[340073466,1728467440292,-1000.0,0.00032302,30]
[340073467,1728467440303,-727.16534978,0.00032302,2]
[340073468,1728467440312,-548.51750359,0.00032302,5]
[340073469,1728467440322,-1937.14686062,0.00032302,5]
[340073470,1728467440443,-953.27683912,0.00032302,5]
[340073471,1728467440455,-951.68998119,0.00032302,5]
[340073472,1728467440464,-577.80777816,0.00032302,5]
[340073473,1728467440474,-213.37183306,0.00032302,5]
[340073474,1728467440484,-207.26772533,0.00032302,5]
[340073475,1728467440493,-1671.87911448,0.00032302,2]
[340073476,1728467440503,-1000.0,0.00032302,2]
[340073477,1728467440520,-1000.0,0.00032302,4]
[340073478,1728467440530,-1000.0,0.00032302,6]
[340073479,1728467440540,-1000.0,0.00032302,120]
[340073480,1728467440550,-1000.0,0.00032302,120]
[340073481,1728467440560,-1000.0,0.00032302,120]
[340073482,1728467440570,-1000.0,0.00032302,120]
[340073483,1728467440579,-598.44377045,0.00032302,120]
[340073484,1728467440588,-150.0,0.00032313,7]
[340073485,1728467440598,-150.0,0.00032313,7]
[340073486,1728467440608,-151.62701931,0.00032313,7]
[340073487,1728467440618,-150.0,0.00032313,7]
[340073488,1728467440627,-150.0,0.00032313,7]
[340073489,1728467440636,-150.0,0.00032313,7]
[340073490,1728467440646,-151.29327083,0.00032313,7]
[340073491,1728467440656,-150.0,0.00032313,7]
[340073492,1728467440666,-150.0,0.00032313,7]
[340073493,1728467440675,-151.70577578,0.00032313,7]
[340073494,1728467440685,-150.0,0.00032313,7]
[340073495,1728467440695,-164.372591,0.00032313,30]
[340073496,1728467440704,-150.09,0.0003246,2]
[340073497,1728467440714,-301.30101554,0.0003247,2]
[340073498,1728467440724,-150.0,0.00032502,7]
[340073499,1728467440733,-150.0,0.00032691,7]
[340073500,1728467440743,-150.0,0.00032764,7]
[340073501,1728467440753,-37417.33,0.00032877,2]
[340073502,1728467440764,-151.0,0.00032877,7]
[340073503,1728467440774,-151.0,0.00032877,7]
[340073504,1728467440783,-206.504241,0.00032877,7]
[340073505,1728467440793,-150.0,0.0003288,7]
[340073506,1728467440803,-500.0,0.000329,2]
[340073507,1728467440812,-159.40052665,0.000329,2]
[340073508,1728467440822,-536.0,0.000329,2]
[340073509,1728467440831,-200.0,0.000329,2]
[340073510,1728467440841,-150.0,0.00032921,7]
[340073511,1728467440850,-300.15547733,0.00033,120]
[340073512,1728467440860,-7774.36492329,0.00033,2]
[340073513,1728467440870,-1000.0,0.00033,5]
[340073514,1728467440880,-351.461133,0.00033,14]
[340073515,1728467440889,-150.0,0.00033069,7]
[340073516,1728467440899,-150.0,0.00033216,7]
[340073517,1728467440908,-150.0,0.00033259,7]
[340073518,1728467440918,-150.0,0.00033448,7]
[340073519,1728467440927,-1147.04415685,0.000335,2]
[340073520,1728467440938,-150.0,0.0003353,7]
[340073521,1728467440949,-703.91614097,0.00033552,15]
[340073522,1728467440960,-150.0,0.00033637,7]
[340073523,1728467440970,-150.0,0.00033667,7]
[340073524,1728467440979,-150.0,0.00033826,7]
[340073525,1728467440989,-600.0,0.00033835,2]
[340073526,1728467440998,-150.0,0.00033868,7]
[340073527,1728467441008,-200.0,0.00034,120]
[340073528,1728467441018,-150.0,0.00034015,7]
[340073529,1728467441028,-476.19871097,0.00034103,30]
[340073530,1728467441038,-222.09,0.00034111,2]
[340073531,1728467441047,-150.0,0.00034119,7]
[340073532,1728467441057,-150.0,0.00034138,7]
[340073533,1728467441066,-150.0,0.00034204,7]
[340073534,1728467441076,-500.0,0.00034247,2]
[340073535,1728467441085,-150.0,0.00034393,7]
[340073536,1728467441094,-11840.0163304,0.00034453,7]
[340073537,1728467441104,-494.86500241,0.00034462,30]
[340073538,1728467441113,-5000.0,0.00034463,7]
[340073539,1728467441122,-177.0,0.00034499,2]
[340073540,1728467441132,-500.0,0.00034521,2]
[340073541,1728467441141,-150.0,0.00034548,10]
[340073542,1728467441151,-453.0,0.0003457,5]
[340073543,1728467441161,-155.158648,0.0003457,7]
[340073544,1728467441171,-151.0,0.0003457,7]
[340073545,1728467441183,-150.0,0.0003457,7]
[340073546,1728467441193,-150.0,0.00034582,7]
[340073547,1728467441202,-150.0,0.00034747,7]
[340073548,1728467441212,-150.0,0.00034772,7]
[340073549,1728467441223,-500.0,0.00034795,2]
[340073550,1728467441234,-300.0,0.000349,12]
[340073551,1728467441244,-150.0,0.00034961,7]
[340073552,1728467441254,-7135.51740338,0.0003499,7]
[340073553,1728467441267,-3496.78494669,0.0003499,7]
[340073554,1728467441279,-680.06187368,0.0003499,7]
[340073555,1728467441302,-10020.11180103,0.0003499,7]
[340073584,1728467446186,-2347.55663592,0.0003499,7]
[340073585,1728467446196,-150.09,0.0003499,2]
[340073586,1728467446205,-375.0,0.00034999,2]
[340073587,1728467446214,-12691.0430846,0.00035,35]
[340073589,1728467700165,-150.0,0.00019725,2]
[340073591,1728467894524,152.73,0.00010959,2]
[340073596,1728468088951,1587.81371088,0.0001137,30]
[340073607,1728468631647,-200.24650343,0.0001592,2]
[340073608,1728468631657,-760.0,0.00021317,2]
[340073609,1728468631667,-183.67728785,0.000231,2]
[340073610,1728468631677,-150.0,0.000232,2]
[340073611,1728468631686,-883.0,0.000236,3]
[340073612,1728468631695,-310.67,0.000236,2]
[340073613,1728468631705,-150.99,0.000236,2]
[340073614,1728468631714,-1773.33868993,0.000236,2]
[340073615,1728468631725,-501.07831554,0.000236,2]
[340073616,1728468631737,-496.32033871,0.000236,2]
[340073617,1728468631749,-2953.7914394,0.000236,2]
[340073618,1728468631759,-760.0,0.00023981,2]
[340073619,1728468631768,-255.32,0.00023981,2]
[340073620,1728468631777,-873.82545072,0.00023981,2]
[340073621,1728468631788,-126.16454928,0.00023981,2]
[340073622,1728468631797,-372.37,0.00023981,2]
[340073623,1728468631807,-567.3,0.00023981,2]
[340073624,1728468631816,-499.99,0.00023981,2]
[340073625,1728468631825,-513.84,0.00023981,2]
[340073626,1728468631835,-239.23,0.000255,7]
[340073627,1728468631844,-150.216,0.00026095,2]
[340073628,1728468631854,-560.273,0.00026095,2]
[340073629,1728468631863,-207.48130125,0.00026095,2]
[340073630,1728468631874,-727.60969875,0.00026095,2]
[340073631,1728468631884,-554.0,0.00026095,2]
[340073632,1728468631893,-1362.79030126,0.00026095,2]
[340073633,1728468631904,-661.82674922,0.00026095,2]
[340073634,1728468631926,-1327.38294952,0.00026095,2]
[340073635,1728468631935,-1142.86002545,0.00026095,2]
[340073636,1728468631946,-762.48597455,0.00026095,2]
[340073637,1728468631955,-287.036,0.00026095,2]
[340073638,1728468631964,-2620.031,0.00026095,2]
[340073639,1728468631973,-150.0,0.00026095,2]
[340073640,1728468631983,-1232.758,0.00026095,2]
[340073641,1728468631993,-500.0,0.000261,2]
[340073642,1728468632002,-760.0,0.00026646,2]
[340073644,1728468632012,-1000.0,0.0002747,2]
[340073646,1728468632021,-150.0,0.00029095,2]
[340073648,1728468632031,-760.0,0.0002931,2]
[340073650,1728468632040,-373.79522253,0.00029473,2]
[340073652,1728468632049,-3747.94640232,0.00030868,2]
[340073654,1728468632060,-777.495996,0.00030868,2]
[340073656,1728468632071,-521.44331218,0.00030868,2]
[340073658,1728468632081,-5779.27477475,0.00030868,2]
[340073660,1728468632092,-1703.61103245,0.00030868,2]
[340073662,1728468632103,-287.37338502,0.00030868,2]
[340073691,1728468637743,-258.73,0.00029596,2]
[340073692,1728468637761,-3314.663444,0.00030868,2]
[340073693,1728468637839,-599.055,0.00030868,2]
[340073694,1728468637933,-887.5,0.00030868,2]
[340073695,1728468638031,-513.30811223,0.00030868,2]
[340073696,1728468638043,-1332.05846622,0.00030868,2]
[340073697,1728468638055,-930.3465004,0.00030868,2]
[340073698,1728468638066,-3495.92357443,0.00030868,2]
[340073699,1728468638075,-498.35,0.00030897,2]
[340073700,1728468638085,-240.0,0.00030898,2]
[340073701,1728468638094,-250.0,0.00030904,2]
[340073702,1728468638104,-500.0,0.00030926,2]
[340073703,1728468638113,-250.0,0.00031482,2]
[340073704,1728468638122,-2050.67,0.00031482,2]
[340073705,1728468638132,-250.0,0.00031503,2]
[340073706,1728468638142,-172.88,0.00031539,2]
[340073708,1728468638152,-258.73,0.0003186,2]
[340073710,1728468638162,-760.0,0.00031975,2]
[340073712,1728468638171,-199.36,0.000322,14]
[340073714,1728468638181,-168.28,0.00032601,2]
[340073716,1728468638191,-500.0,0.000328,2]
[340073718,1728468638200,-455.0,0.000329,2]
[340073720,1728468638209,-200.0,0.000329,2]
[340073722,1728468638219,-193.95,0.00032948,2]
[340073724,1728468638228,-150.0,0.00033,14]
[340073726,1728468638238,-165.42,0.00033645,2]
[340073728,1728468638248,-755.24,0.00034041,2]
[340073730,1728468638258,-423.81,0.00034041,2]
[340073732,1728468638268,-258.73,0.00034123,2]
[340073734,1728468638277,-1037.04498161,0.000343,5]
[340073736,1728468638287,-193.95,0.00034318,2]
[340073738,1728468638296,-858.14,0.00034646,2]
[340073740,1728468638306,-358.92,0.00034646,2]
[340073742,1728468638316,-358.92,0.00034646,2]
[340073744,1728468638325,-358.92,0.00034646,2]
[340073746,1728468638336,-358.75,0.00034647,2]
[340073748,1728468638346,-240.0,0.00034761,2]
[340073750,1728468638355,-150.0,0.00034795,2]
[340073752,1728468638365,-150.0,0.00034795,2]
[340073754,1728468638374,-150.0,0.00034795,2]
[340073756,1728468638384,-150.0,0.00034795,2]
[340073758,1728468638393,-150.0,0.00034795,2]
[340073760,1728468638403,-150.0,0.00034795,2]
[340073762,1728468638414,-150.0,0.00034795,2]
[340073763,1728468638423,-150.0,0.00034795,2]
[340073764,1728468638432,-150.0,0.00034795,2]
[340073765,1728468638443,-150.0,0.00034795,2]
[340073766,1728468638452,-150.0,0.00034795,2]
[340073767,1728468638462,-150.0,0.00034795,2]
[340073768,1728468638472,-150.0,0.00034795,2]
[340073769,1728468638482,-2000.0,0.00034824,2]
[340073770,1728468638492,-898.40092708,0.000349,15]
[340073771,1728468638502,-1211.43458627,0.00034998,2]
[340073772,1728468638511,-150.0,0.00034999,7]
[340073773,1728468638521,-150.0,0.00034999,7]
[340073774,1728468638530,-150.0,0.00034999,7]
[340073775,1728468638539,-152.29291774,0.00034999,7]
[340073776,1728468638548,-258.40725174,0.00034999,7]
[340073777,1728468638563,-150.0,0.00034999,7]
[340073778,1728468638572,-150.0,0.00034999,7]
[340073779,1728468638581,-150.0,0.00034999,7]
[340073780,1728468638591,-49234.94056234,0.00035,35]
[340073781,1728468638628,-623.44199861,0.00035,35]
[340073782,1728468638656,-141.61743905,0.00035,35]
[340073783,1728468638665,-4159.16310854,0.00035,24]
[340073786,1728468639705,-14383.25731055,0.00035,24]
[340073788,1728468639945,-867.74640596,0.00035,24]
[340073789,1728468639956,-1146.80056203,0.00035,24]
[340073790,1728468639967,-816.97002349,0.00035,24]
[340073791,1728468639978,-264.4956,0.00035,24]
[340073792,1728468639989,-5177.92916537,0.00035,24]
[340073793,1728468640001,-1676.22048038,0.00035,24]
[340073794,1728468640012,-2156.20216377,0.00035,24]
[340073795,1728468640023,-428.25,0.00035,24]
[340073796,1728468640034,-1467.29741007,0.00035,24]
[340073797,1728468640046,-1281.03800276,0.00035,24]
[340073798,1728468640078,-2567.20074478,0.00035,24]
[340073799,1728468640089,-362.572002,0.00035,24]
[340073800,1728468640099,-1023.25,0.00035,24]
[340073802,1728468640110,-5291.6,0.00035,24]
[340073823,1728468953007,159.89,0.00010959,2]
[340073830,1728469434131,160.41,0.00010959,2]
[340073831,1728469507788,99839.59,0.00011,2]
[340073832,1728469507821,840942.69513893,0.00011,2]
[340073834,1728469554353,202.84974826,6.94e-05,2]
[340073850,1728469831857,-3586.11267,0.00021009,2]
[340073851,1728469831869,-1415.43626018,0.00021009,2]
[340073852,1728469831880,-10072.05530979,0.00021009,2]
[340073853,1728469831944,-1330.96035107,0.00021009,2]
[340073854,1728469831953,-150.0,0.00021316,2]
[340073855,1728469831963,-250.0,0.00021317,2]
[340073856,1728469831973,-1949.24,0.00021317,2]
[340073857,1728469831982,-170.0,0.00021317,2]
[340073858,1728469831992,-7285.03,0.00021317,2]
[340073859,1728469832001,-427.07,0.00021317,2]
[340073860,1728469832011,-172.84,0.00021956,2]
[340073861,1728469832020,-500.0,0.00022017,2]
[340073862,1728469832029,-500.0,0.00022017,2]
[340073863,1728469832038,-94878.59629711,0.0002238,2]
[340073864,1728469832047,-170.0,0.00022382,2]
[340073865,1728469832056,-999.99,0.00022382,2]
[340073866,1728469832066,-499.99,0.00022382,2]
[340073867,1728469832075,-499.99,0.00022382,2]
[340073868,1728469832084,-154.89888065,0.000224,2]
[340073869,1728469832093,-150.60051634,0.000224,2]
[340073870,1728469832102,-150.90040462,0.000224,2]
[340073871,1728469832111,-150.0,0.000233,2]
[340073872,1728469832121,-500.0,0.00023387,2]
[340073873,1728469832130,-170.0,0.00023448,2]
[340073874,1728469832139,-172.84,0.00023768,2]
[340073875,1728469832148,-170.0,0.00024514,2]
[340073876,1728469832157,-150.99,0.0002558,2]
[340073877,1728469832166,-923.21,0.0002558,2]
[340073878,1728469832176,-172.84,0.0002558,2]
[340073879,1728469832185,-170.0,0.0002558,2]
[340073880,1728469832194,-242.82,0.000259,7]
[340073881,1728469832203,-1461.43,0.000259,2]
[340073882,1728469832212,-554.0,0.00027493,2]
[340073883,1728469832353,-1734.847,0.00027493,2]
[340073884,1728469832362,-150.0,0.00027493,2]
[340073885,1728469832372,-6114.925,0.00027493,2]
[340073886,1728469832381,-296.48,0.00029808,2]
[340073887,1728469832389,-1425.56482021,0.00031,2]
[340073888,1728469832399,-200.0,0.00031509,2]
[340073889,1728469832408,-391.74,0.0003162,2]
[340073890,1728469832416,-250.0,0.00031726,2]
[340073891,1728469832428,-958.15,0.00031782,2]
[340073892,1728469832437,-296.48,0.00032072,2]
[340073893,1728469832446,-9171.23242686,0.00032301,2]
[340073894,1728469832464,-13520.28614034,0.00032301,2]
[340073895,1728469832473,-159.98,0.00032361,2]
[340073896,1728469832482,-187.27,0.00032403,2]
[340073897,1728469832491,-500.0,0.0003243,2]
[340073898,1728469832501,-250.0,0.00032436,2]
[340073899,1728469832510,-295.72,0.0003244,2]
[340073900,1728469832519,-808.56083439,0.00032471,15]
[340073901,1728469832528,-858.55,0.00032509,2]
[340073902,1728469832537,-180.0,0.0003252,2]
[340073903,1728469832546,-238.12,0.00032527,2]
[340073904,1728469832555,-178.0,0.0003253,2]
[340073905,1728469832564,-23890.0,0.0003253,2]
[340073906,1728469832573,-200.0,0.00032571,2]
[340073907,1728469832582,-4894.21,0.00032634,2]
[340073908,1728469832591,-202.35,0.000328,14]
[340073909,1728469832600,-199.02,0.00032839,2]
[340073910,1728469832610,-7809.82,0.00032877,2]
[340073911,1728469832619,-200.0,0.000329,2]
[340073912,1728469832628,-3298.0,0.000329,2]
[340073913,1728469832637,-456.22639212,0.000329,2]
[340073914,1728469832646,-536.83456008,0.000329,2]
[340073915,1728469832655,-150.0,0.00033014,2]
[340073916,1728469832664,-1658.5827,0.00033746,2]
[340073917,1728469832673,-1056.3756,0.00033746,2]
[340073918,1728469832682,-151.66,0.00033755,2]
[340073919,1728469832691,-151.66,0.0003377,2]
[340073920,1728469832700,-151.66,0.00033785,2]
[340073921,1728469832710,-856.0,0.00033786,2]
[340073922,1728469832720,-151.66,0.00033801,2]
[340073923,1728469832729,-172.48,0.00033809,2]
[340073924,1728469832739,-151.66,0.00033816,2]
[340073925,1728469832748,-358.92,0.00033825,2]
[340073926,1728469832758,-358.92,0.00033825,2]
[340073927,1728469832767,-358.92,0.00033825,2]
[340073928,1728469832776,-358.92,0.00033825,2]
[340073929,1728469832785,-358.92,0.00033825,2]
[340073930,1728469832794,-357.05,0.00033825,2]
[340073931,1728469832804,-151.66,0.00033831,2]
[340073932,1728469832814,-151.66,0.00033847,2]
[340073933,1728469832823,-151.66,0.00033862,2]
[340073934,1728469832833,-151.66,0.00033877,2]
[340073935,1728469832843,-151.66,0.00033893,2]
[340073936,1728469832852,-151.66,0.00033908,2]
[340073937,1728469832862,-151.66,0.00033923,2]
[340073938,1728469832871,-808.56083431,0.00034027,15]
[340073939,1728469832880,-192.25,0.00034028,2]
[340073940,1728469832889,-358.92,0.00034078,2]
[340073941,1728469832898,-175.43,0.00034178,2]
[340073942,1728469832908,-358.92,0.00034178,2]
[340073943,1728469832917,-296.48,0.00034336,2]
[340073944,1728469832927,-150.0,0.00034384,2]
[340073945,1728469832936,-1003.61680035,0.0003441,2]
[340073946,1728469832946,-197.48,0.00034508,30]
[340073947,1728469832956,-2500.0,0.00034527,2]
[340073948,1728469832965,-150.0,0.00034648,2]
[340073949,1728469832975,-167.04362,0.00034648,2]
[340073950,1728469832985,-619.84,0.00034672,2]
[340073951,1728469832994,-150.0,0.00034722,2]
[340073952,1728469833003,-150.0,0.00034743,2]
[340073953,1728469833013,-150.0,0.00034747,2]
[340073954,1728469833022,-150.0,0.00034757,2]
[340073955,1728469833032,-150.0,0.00034759,2]
[340073956,1728469833042,-150.0,0.0003476,2]
[340073957,1728469833051,-150.0,0.00034776,2]
[340073958,1728469833060,-150.0,0.00034781,2]
[340073959,1728469833070,-150.0,0.00034785,2]
[340073960,1728469833080,-150.0,0.00034796,2]
[340073961,1728469833089,-300.0,0.000348,12]
[340073962,1728469833098,-150.0,0.00034809,2]
[340073963,1728469833108,-36634.0,0.00034816,2]
[340073964,1728469833117,-2000.0,0.00034825,2]
[340073965,1728469833127,-150.0,0.00034827,2]
[340073966,1728469833136,-150.0,0.00034829,2]
[340073967,1728469833145,-150.0,0.00034838,2]
[340073968,1728469833155,-150.0,0.00034839,2]
[340073969,1728469833165,-150.0,0.00034839,2]
[340073970,1728469833176,-150.0,0.0003485,2]
[340073971,1728469833186,-150.0,0.00034852,2]
[340073972,1728469833197,-150.0,0.00034855,2]
[340073973,1728469833206,-151.90002365,0.00034873,5]
[340073974,1728469833216,-151.0,0.00034889,7]
[340073975,1728469833226,-151.0,0.00034889,7]
[340073976,1728469833236,-922.17221152,0.0003489,7]
[340073977,1728469833246,-583.08306438,0.0003489,2]
[340073978,1728469833256,-150.0,0.00034891,2]
[340073979,1728469833270,-172.152208,0.00034899,7]
[340073980,1728469833280,-215.485927,0.00034899,7]
[340073981,1728469833290,-151.0,0.00034899,7]
[340073982,1728469833299,-151.0,0.00034899,7]
[340073983,1728469833310,-151.0,0.00034899,7]
[340073984,1728469833319,-151.0,0.00034899,7]
[340073985,1728469833328,-13981.107,0.00034899,2]
[340073986,1728469833339,-7500.0,0.00034899,2]
[340073987,1728469833349,-4860.7578,0.000349,2]
[340073988,1728469833359,-262.2143,0.000349,2]
[340073989,1728469833369,-427.9814,0.000349,2]
[340073990,1728469833378,-150.0,0.000349,2]
[340073991,1728469833388,-600.0,0.000349,12]
[340073992,1728469833397,-998.47827364,0.000349,2]
[340073993,1728469833407,-150.0,0.00034906,2]
[340073994,1728469833417,-150.0,0.00034912,2]
[340073995,1728469833428,-150.0,0.00034913,2]
[340073996,1728469833437,-150.0,0.00034914,2]
[340073997,1728469833448,-150.0,0.00034916,2]
[340073998,1728469833458,-150.0,0.00034942,2]
[340073999,1728469833467,-150.0,0.00034942,2]
[340074000,1728469833477,-150.0,0.0003495,2]
[340074001,1728469833486,-150.0,0.00034961,2]
[340074002,1728469833496,-150.0,0.00034969,2]
[340074003,1728469833506,-151.0,0.00034979,7]
[340074004,1728469833516,-151.0,0.00034979,7]
[340074005,1728469833525,-151.0,0.00034979,7]
[340074006,1728469833535,-151.0,0.00034979,7]
[340074007,1728469833544,-353.0,0.00034981,5]
[340074008,1728469833555,-11614.4922098,0.00034988,7]
[340074009,1728469833564,-46457.9688392,0.0003499,7]
[340074010,1728469833574,-201.0,0.0003499,2]
[340074011,1728469833584,-337.0,0.0003499,2]
[340074012,1728469833593,-151.0,0.0003499,7]
[340074013,1728469833603,-151.0,0.0003499,7]
[340074014,1728469833613,-155.288085,0.0003499,7]
[340074015,1728469833622,-11614.4922098,0.0003499,7]
[340074016,1728469833632,-969.14766902,0.00034998,2]
[340074017,1728469833641,-1199.82932017,0.00034998,30]
[340074018,1728469833651,-50000.0,0.00035,35]
[340074019,1728469833660,-50000.0,0.00035,22]
[340074020,1728469833670,-501.13,0.00035,4]
[340074021,1728469833680,-500.0,0.00035,4]
[340074022,1728469833690,-12029.68896978,0.00035,2]
[340074023,1728469833699,-791.106354,0.00035,120]
[340074024,1728469833709,-291.03681732,0.00035,60]
[340074025,1728469833719,-2500.0,0.00035,60]
[340074026,1728469833728,-151.0,0.00035,7]
[340074027,1728469833739,-193.442095,0.00035,7]
[340074028,1728469833749,-150.0,0.00035,7]
[340074029,1728469833759,-150.0,0.00035,7]
[340074030,1728469833768,-150.0,0.00035,7]
[340074031,1728469833778,-150.0,0.00035,7]
[340074032,1728469833788,-150.0,0.00035,7]
[340074033,1728469833798,-150.0,0.00035,7]
[340074034,1728469833808,-1318.6999095,0.00035015,2]
[340074035,1728469833818,-415.6971612,0.00035015,2]
[340074036,1728469833828,-831.3943225,0.00035015,2]
[340074037,1728469833838,-684.6893235,0.00035015,2]
[340074038,1728469833848,-500.0,0.00035068,2]
[340074039,1728469833857,-2941.5840971,0.00035123,2]
[340074040,1728469833867,-11614.4922098,0.00035128,7]
[340074041,1728469833878,-46457.9688392,0.00035148,7]
[340074042,1728469833887,-11697.9522721,0.00035148,7]
[340074043,1728469833897,-186.67744969,0.00035148,2]
[340074044,1728469833907,-155.84,0.00035148,2]
[340074045,1728469833916,-155.84,0.00035148,2]
[340074046,1728469833927,-155.84,0.00035148,2]
[340074047,1728469833936,-155.84,0.00035148,2]
[340074048,1728469833947,-26540.97472737,0.00035158,7]
[340074049,1728469833961,-4729.43617998,0.00035158,7]
[340074050,1728469833994,-793.75,0.00035158,7]
[340074051,1728469834006,-962.78095166,0.00035158,7]
[340074052,1728469834018,-22253.86192698,0.00035158,7]
[340074053,1728469838411,-1160.159679,0.0002121,2]
[340074054,1728469838420,-619.84709814,0.00025044,2]
[340074236,1728469842905,-1532.13013937,0.00025044,2]
[340074237,1728469842914,-376.0,0.00034906,5]
[340074238,1728469842924,-72478.61052201,0.00035158,7]
[340074239,1728469842935,-116979.522721,0.00035158,7]
[340074240,1728469842945,-155.84,0.00035158,2]
[340074241,1728469842954,-155.84,0.00035158,2]
[340074242,1728469842963,-155.84,0.00035158,2]
[340074243,1728469842973,-155.84,0.00035158,2]
[340074244,1728469842983,-155.84,0.00035158,2]
[340074245,1728469842993,-207458.73702218,0.00035168,2]
[340074246,1728469843005,-37541.26297782,0.00035168,2]
[340074247,1728469843015,-150.0,0.00035195,7]
[340074248,1728469843025,-5848.97613604,0.00035224,7]
[340074249,1728469843034,-1318.6999095,0.00035234,2]
[340074250,1728469843045,-415.6971612,0.00035234,2]
[340074251,1728469843054,-831.3943225,0.00035234,2]
[340074252,1728469843064,-684.6893235,0.00035234,2]
[340074253,1728469843073,-2941.5840971,0.00035234,2]
[340074254,1728469843083,-155.84,0.00035248,2]
[340074255,1728469843092,-284367.14160526,0.00035258,36]
[340074256,1728469843102,-81885.6659046,0.00035258,7]
[340074257,1728469843112,-155.84,0.00035258,2]
[340074258,1728469843121,-155.84,0.00035258,2]
[340074259,1728469843143,-155.84,0.00035258,2]
[340074260,1728469843153,-155.84,0.00035258,2]
[340074261,1728469843163,-155.84,0.00035258,2]
[340074262,1728469843173,-155.84,0.00035258,2]
[340074263,1728469843185,-155.84,0.00035258,2]
[340074264,1728469843201,-155.84,0.00035258,2]
[340074265,1728469843211,-2183.4553,0.00035268,2]
[340074266,1728469843221,-500.0,0.00035268,2]
[340074267,1728469843231,-18184.5471,0.00035268,2]
[340074268,1728469843241,-1000.0,0.00035268,2]
[340074269,1728469843251,-100000.0,0.00035268,2]
[340074270,1728469843262,-6504.2533,0.00035268,2]
[340074271,1728469843274,-297.9512,0.00035268,2]
[340074272,1728469843284,-7566.8656,0.00035268,2]
[340074273,1728469843294,-15068.4349,0.00035268,2]
[340074274,1728469843304,-500.0,0.00035342,2]
[340074275,1728469843317,-1199.82932017,0.00035367,30]
[340074276,1728469843327,-150.0,0.00035368,30]
[340074277,1728469843337,-150.0,0.0003539,7]
[340074278,1728469843348,-151.6,0.00035468,2]
[340074279,1728469843358,-150.0,0.00035471,7]
[340074280,1728469843367,-808.56083431,0.00035583,15]
[340074281,1728469843377,-150.0,0.00035585,7]
[340074282,1728469843387,-500.0,0.00035616,2]
[340074283,1728469843396,-161.15745747,0.00035616,2]
[340074284,1728469843407,-150.0,0.00035665,7]
[340074285,1728469843417,-150.0,0.0003578,7]
[340074286,1728469843427,-900.0,0.000359,13]
[340074287,1728469843437,-150.0,0.00035942,7]
[340074288,1728469843447,-998.47827356,0.00035963,2]
[340074289,1728469843457,-150.0,0.00035975,7]
[340074290,1728469843467,-155.84,0.0003599,2]